bitfinex/quotes_SOLUSD_20240717
["timestamp","ask_amount","ask_price","bid_price","bid_amount"]
[1721203624895,16.36230172,161.06,161.02,45.0]
[1721203625611,14.81,161.08,161.03,14.81]
[1721203625903,14.81,161.09,161.04,59.81]
[1721203626080,1.55223808,161.08,161.04,14.81]
[1721203626485,28.42414409,161.15,161.07,14.81]
[1721203626687,21.0164,161.13,161.08,14.81]
[1721203626910,1.55191945,161.12,161.08,14.81]
[1721203627697,7.75851945,161.12,161.07,14.81]
[1721203627906,1.55191945,161.12,161.08,46.24146027]
[1721203628108,1.55191945,161.12,161.08,61.05146027]
[1721203628401,1.55191945,161.12,161.08,45.0]
[1721203629589,7.75851945,161.12,161.08,45.0]
[1721203629987,6.2066,161.12,161.08,45.0]
[1721203630387,1.55182238,161.14,161.09,1.24145775]
[1721203630587,1.55182219,161.17,161.08,45.0]
[1721203631232,6.2057,161.15,161.08,45.0]
[1721203631509,6.2057,161.15,161.09,1.24134257]
[1721203632291,6.2057,161.15,161.08,45.0]
[1721203632489,1.55154136,161.14,161.08,45.0]
[1721203632683,6.2062,161.13,161.08,45.0]
[1721203633009,1.55179059,161.12,161.08,45.0]
[1721203633586,1.55173578,161.13,161.08,45.0]
[1721203634488,1.55173578,161.13,161.01,18.63]
[1721203634489,32.57707102,161.16,161.03,16.4005]
[1721203634690,29.97,161.15,161.03,16.4005]
[1721203634890,1.55200517,161.14,161.03,16.4005]
[1721203635102,6.207,161.11,161.03,16.4005]
[1721203635303,1.55200219,161.1,161.03,16.4005]
[1721203636017,1.55200219,161.1,161.04,45.0]
[1721203636701,0.17,161.13,161.04,45.0]
[1721203636900,1.55196273,161.12,161.04,45.0]
[1721203637102,1.55196273,161.12,161.05,1.24158861]
[1721203637311,7.75876273,161.12,161.04,45.0]
[1721203637816,7.75876273,161.12,161.05,1.24160343]
[1721203638122,6.2069,161.11,161.04,45.0]
[1721203638293,1.55200412,161.1,161.04,45.0]
[1721203638999,7.75930412,161.1,161.04,45.0]
[1721203639198,1.5521018,161.09,161.04,45.0]
[1721203641122,7.75958069,161.1,161.04,45.0]
[1721203641437,7.75958069,161.1,161.03,16.4005]
[1721203641438,1.55217969,161.09,161.03,16.4005]
[1721203641601,7.75997969,161.09,161.03,16.4005]
[1721203641800,1.55217969,161.09,161.04,1.24180336]
[1721203642104,1.55217969,161.09,161.05,1.24177263]
[1721203642417,1.55217969,161.09,161.03,16.4005]
[1721203642720,1.72216977,161.11,161.04,1.24173582]
[1721203642920,7.75936977,161.11,161.04,46.24173582]
[1721203643095,6.2073,161.1,161.04,46.24173582]
[1721203643300,1.55209102,161.09,161.04,45.0]
[1721203643500,1.55209102,161.09,161.05,1.24167281]
[1721203643801,6.2069,161.11,161.05,1.24167281]
[1721203644000,7.75930259,161.1,161.04,45.0]
[1721203644213,6.2073,161.1,161.04,45.0]
[1721203644426,7.75970397,161.09,161.04,45.0]
[1721203644635,6.2077,161.09,161.04,45.0]
[1721203645830,6.2074,161.1,161.05,1.24167061]
[1721203646210,7.75972711,161.09,161.04,45.0]
[1721203646506,6.2077,161.09,161.05,1.24162616]
[1721203646912,6.2074,161.1,161.05,1.24162616]
[1721203647118,1.55203334,161.09,161.04,45.0]
[1721203647821,1.55203343,161.09,161.04,45.0]
[1721203648025,31.18203517,161.12,161.03,16.4005]
[1721203648235,14.83,161.05,161.03,16.4005]
[1721203648403,6.2111,161.01,160.98,16.3609]
[1721203648723,1.55235188,161.04,160.98,16.3609]
[1721203649028,17.07480409,161.06,160.98,16.3609]
[1721203649343,1.72260409,161.06,160.94,6.2271]
[1721203649628,14.83,161.03,160.98,14.83]
[1721203649833,14.83,161.04,160.99,14.83]
[1721203650041,14.83,161.04,160.94,6.2271]
[1721203650042,16.38270097,161.03,160.97,14.83]
[1721203650215,16.38276806,161.02,160.96,14.83]
[1721203650420,14.83,161.03,160.98,14.83]
[1721203650626,16.38276486,161.05,160.99,1.24221189]
[1721203650940,1.55253915,161.04,160.96,10.0]
[1721203651144,6.4512,161.09,160.96,10.0]
[1721203651145,6.4512,161.09,161.0,16.3699]
[1721203651323,16.38227236,161.08,161.03,14.83]
[1721203652328,1.55227318,161.1,161.01,1.24181849]
[1721203652635,14.83,161.07,161.01,45.0]
[1721203652942,16.38227564,161.07,161.01,59.83]
[1721203653120,16.38238743,161.06,161.01,59.83]
[1721203653328,14.83,161.05,161.0,16.3699]
[1721203653527,14.83,161.06,161.0,31.1999]
[1721203653748,6.2077,161.09,161.02,14.83]
[1721203653961,22.59039468,161.08,161.02,14.83]
[1721203654167,1.55231381,161.07,161.04,14.83]
[1721203654332,6.2081,161.08,161.0,16.3699]
[1721203654650,1.55229724,161.07,161.01,45.0]
[1721203654861,6.2091,161.06,161.01,45.0]
[1721203655025,1.55249014,161.05,161.01,45.0]
[1721203655221,1.55257302,161.04,161.0,16.3699]
[1721203655448,7.76227302,161.04,160.95,15.8128]
[1721203655635,1.55263458,161.03,160.95,15.8128]
[1721203656348,7.76263458,161.03,160.95,15.8128]
[1721203656554,1.55263458,161.03,160.95,15.8128]
[1721203656726,0.34,161.02,160.95,15.8128]
[1721203657051,1.89303773,161.02,160.95,15.8128]
[1721203657431,6.2108,161.01,160.95,15.8128]
[1721203657738,1.55303722,161.0,160.95,15.8128]
[1721203658126,1.55303722,161.0,160.89,6.541]
[1721203658325,1.55303722,161.0,160.9,15.9091]
[1721203658549,6.2114,161.0,160.9,15.9091]
[1721203658755,6.2115,160.99,160.91,1.24261294]
[1721203658956,1.55326841,160.98,160.9,15.9091]
[1721203659545,7.76516841,160.98,160.9,15.9091]
[1721203659742,1.55330318,160.97,160.9,15.9091]
[1721203659955,6.2126,160.97,160.9,15.9091]
[1721203660154,1.55344589,160.96,160.9,15.9091]
[1721203660456,1.55359629,160.95,160.88,0.18476234]
[1721203660758,7.93669629,160.95,160.86,16.98533937]
[1721203661054,7.76669629,160.95,160.86,16.98533937]
[1721203661752,7.76669629,160.95,160.87,45.0]
[1721203662049,7.76669629,160.95,160.86,15.74246234]
[1721203662230,1.55359629,160.95,160.86,45.39246234]
[1721203662424,1.5535691,160.96,160.86,45.39246234]
[1721203662625,6.5863,160.97,160.86,45.39246234]
[1721203662830,1.55347207,160.96,160.86,45.39246234]
[1721203663030,12.799,160.97,160.86,45.39246234]
[1721203663240,6.5863,160.97,160.87,46.24282926]
[1721203663437,1.55330613,160.96,160.88,0.34]
[1721203663659,6.5863,160.97,160.87,45.0]
[1721203663837,1.55341306,160.96,160.87,45.0]
[1721203664162,1.55341226,160.96,160.87,45.0]
[1721203664331,6.2127,160.96,160.87,45.0]
[1721203664531,6.5863,160.97,160.87,45.0]
[1721203664846,1.55331624,160.96,160.87,45.0]
[1721203665064,1.6798,161.0,160.89,29.65]
[1721203665065,1.55340059,161.0,160.89,29.65]
[1721203665268,7.76490059,161.0,160.91,10.0]
[1721203665463,7.76490059,161.0,160.92,1.24239579]
[1721203665648,7.76490059,161.0,160.93,1.2423186]
[1721203667251,6.212,160.98,160.92,45.0]
[1721203667468,6.2116,160.99,160.92,45.0]
[1721203667871,1.55340059,161.0,160.92,45.0]
[1721203668179,7.76304344,161.03,160.93,15.7085]
[1721203668477,6.2104,161.02,160.94,45.0]
[1721203668686,1.55280494,161.01,160.94,45.0]
[1721203668846,6.21,161.03,160.94,45.0]
[1721203669052,1.55269288,161.05,160.97,10.0]
[1721203669352,8.5868,161.09,160.98,46.24194514]
[1721203669353,1.55243142,161.08,160.98,46.24194514]
[1721203669583,8.5868,161.09,160.99,1.24193732]
[1721203669584,6.2089,161.06,160.99,1.24193732]
[1721203669877,1.55242165,161.07,160.99,1.24193732]
[1721203670079,1.55242165,161.07,160.99,11.24193732]
[1721203670275,1.55242165,161.07,161.0,60.0052]
[1721203670485,7.76092165,161.07,161.0,60.0052]
[1721203670663,6.2085,161.07,161.0,60.0052]
[1721203670864,7.760404,161.08,161.01,1.24182889]
[1721203671183,7.76069588,161.07,161.02,1.2418367]
[1721203671682,6.2089,161.06,161.0,60.0052]
[1721203671853,7.76079588,161.07,161.0,61.24710253]
[1721203672063,7.7606782,161.08,161.0,61.24710253]
[1721203672355,1.5522861,161.07,161.0,61.24710253]
[1721203672769,1.55230981,161.07,161.0,60.0052]
[1721203673162,7.76080981,161.07,161.0,60.0052]
[1721203673783,6.2088,161.06,161.0,60.0052]
[1721203674082,7.76166516,161.05,161.0,60.0052]
[1721203674385,6.2092,161.05,161.0,60.0052]
[1721203674676,1.55248852,161.04,161.0,60.0052]
[1721203675078,1.55248743,161.05,161.0,60.0052]
[1721203675287,7.76168743,161.05,161.0,60.0052]
[1721203675506,6.2092,161.05,161.0,60.0052]
[1721203676007,6.2088,161.06,161.0,60.0052]
[1721203676160,1.55246433,161.05,161.0,60.0052]
[1721203676988,1.55247184,161.04,161.0,60.0052]
[1721203677558,1.55247184,161.04,160.93,16.0737]
[1721203677976,6.5501,161.03,160.93,16.0737]
[1721203678191,1.55292502,161.02,160.93,16.0737]
[1721203678391,1.5529248,161.01,160.93,16.0737]
[1721203679090,7.7637248,161.01,160.93,16.0737]
[1721203679289,1.55298308,161.0,160.93,16.0737]
[1721203679764,6.2116,160.99,160.89,16.161]
[1721203679965,1.55323485,160.98,160.89,16.161]
[1721203680168,7.76513485,160.98,160.89,16.161]
[1721203680368,1.55323485,160.98,160.89,16.161]
[1721203681091,1.55320599,160.99,160.89,16.161]
[1721203681295,7.76522375,160.98,160.89,16.161]
[1721203681501,7.76522375,160.98,160.9,45.0]
[1721203681684,1.55322375,160.98,160.9,45.0]
[1721203682083,31.02923351,161.17,160.9,45.0]
[1721203682084,1.55313098,161.02,160.91,10.17]
[1721203682389,6.5885,161.04,160.91,10.17]
[1721203682390,1.55287702,161.03,160.93,10.0]
[1721203682589,1.55264374,161.04,160.96,15.5514]
[1721203682982,1.55263557,161.05,160.96,25.5514]
[1721203683194,1.55263557,161.05,160.97,45.65728143]
[1721203683708,1.55254161,161.06,160.97,45.65728143]
[1721203684201,7.76109143,161.07,160.99,10.0]
[1721203684516,7.76089143,161.07,161.0,45.0]
[1721203684798,1.55239143,161.07,160.97,84.65]
[1721203685170,7.76089143,161.07,160.97,84.65]
[1721203685377,6.2089,161.06,160.97,84.65]
[1721203685573,7.76167539,161.05,160.97,55.0]
[1721203685771,1.55248311,161.04,160.97,45.0]
[1721203686495,6.2099,161.04,160.97,45.0]
[1721203686687,1.55263518,161.03,160.97,45.0]
[1721203687403,6.2103,161.03,160.96,15.5514]
[1721203687619,6.2108,161.01,160.96,15.5514]
[1721203687776,6.2108,161.01,160.96,16.79374613]
[1721203687777,7.76373266,161.01,160.96,16.79374613]
[1721203687974,6.2099,161.04,160.96,16.79374613]
[1721203688177,1.55276023,161.03,160.96,16.79374613]
[1721203688477,1.55276023,161.03,160.96,15.5514]
[1721203689074,1.55276023,161.03,160.97,45.0]
[1721203689275,1.55276023,161.03,160.98,1.24218369]
[1721203689490,1.55273051,161.04,160.99,1.24218441]
[1721203689675,7.76243051,161.04,160.99,1.24218441]
[1721203690001,1.55273023,161.03,160.97,45.0]
[1721203690213,1.55258526,161.04,160.98,1.24206821]
[1721203690498,1.55258526,161.04,160.97,45.0]
[1721203690697,1.55256583,161.05,160.97,45.0]
[1721203691088,1.55256583,161.05,160.98,1.24202111]
[1721203691313,1.55256583,161.05,160.99,1.24198363]
[1721203691479,6.2758,161.08,160.99,46.24198363]
[1721203691480,1.55248249,161.07,160.99,46.24198363]
[1721203691982,1.55248249,161.07,160.99,45.0]
[1721203692290,6.2095,161.05,160.99,45.0]
[1721203692503,6.2089,161.06,160.99,45.0]
[1721203692799,7.76172036,161.05,160.99,45.0]
[1721203693013,1.55254358,161.04,160.99,45.0]
[1721203693184,7.76134358,161.07,160.99,45.0]
[1721203693384,6.2093,161.05,160.99,45.0]
[1721203693580,1.55254552,161.04,160.99,45.0]
[1721203693900,6.2758,161.08,160.99,45.0]
[1721203693901,6.2088,161.06,161.0,1.24204051]
[1721203694106,1.55255064,161.07,160.99,45.0]
[1721203694281,1.55255064,161.07,161.01,1.2419143]
[1721203694481,1.55255064,161.07,161.02,1.24185698]
[1721203694909,12.7972512,161.12,161.02,1.24185698]
[1721203695122,6.2075,161.1,161.01,74.65]
[1721203695296,6.2075,161.1,161.02,1.2416086]
[1721203695487,7.75973706,161.09,161.02,1.2416086]
[1721203695799,7.76013706,161.08,161.01,45.0]
[1721203695999,6.2081,161.08,161.01,45.0]
[1721203696395,6.2081,161.08,161.02,15.0073]
[1721203696595,7.76096828,161.07,161.03,45.0]
[1721203696807,6.2081,161.08,161.03,46.24177395]
[1721203696985,7.75971744,161.1,161.03,46.24177395]
[1721203697190,6.2077,161.09,161.03,45.0]
[1721203697415,6.2076,161.1,161.04,1.24168822]
[1721203697686,6.2076,161.1,161.05,1.24160544]
[1721203697893,12.5411,161.12,161.05,1.24160544]
[1721203698115,6.2067,161.12,161.05,1.24160544]
[1721203698625,7.75808124,161.13,161.06,1.24147043]
[1721203698794,1.55188124,161.13,161.03,45.0]
[1721203698996,17.06583438,161.15,161.03,45.0]
[1721203699322,17.06583438,161.15,161.04,1.24144732]
[1721203699323,1.55180915,161.14,161.04,1.24144732]
[1721203699615,1.55180915,161.14,161.03,45.0]
[1721203699616,1.55180915,161.14,161.05,1.24144444]
[1721203700201,7.75790915,161.14,161.03,45.0]
[1721203700528,6.2059,161.14,161.04,41.23137423]
[1721203700829,7.75758492,161.14,161.05,46.24134794]
[1721203701708,6.2059,161.14,161.05,46.24134794]
[1721203702233,7.75712364,161.15,161.06,26.1768]
[1721203702406,1.55150759,161.17,161.07,75.8911938]
[1721203702628,6.205,161.16,161.08,11.24115711]
[1721203702947,6.205,161.16,161.09,45.0]
[1721203703249,6.205,161.16,161.1,1.24112726]
[1721203703448,17.06150907,161.19,161.07,74.65]
[1721203703824,6.2054,161.15,161.07,74.65]
[1721203704443,6.205,161.16,161.07,74.65]
[1721203704630,1.55147585,161.15,161.07,74.65]
[1721203705531,1.55147585,161.15,161.08,1.24118084]
[1721203705734,6.205,161.16,161.08,1.24118084]
[1721203705949,6.1596,161.2,161.09,6.1499]
[1721203706129,6.2046,161.17,161.1,45.0]
[1721203706447,6.2042,161.18,161.1,45.0]
[1721203707352,6.2046,161.17,161.1,45.0]
[1721203709719,7.75530427,161.19,161.11,16.88817271]
[1721203709922,6.3386,161.25,161.11,16.88817271]
[1721203709923,7.7544694,161.21,161.12,45.17]
[1721203710118,6.2033,161.21,161.12,45.17]
[1721203710322,6.2035,161.2,161.12,45.17]
[1721203710739,6.2039,161.19,161.12,45.0]
[1721203711042,6.2045,161.18,161.12,45.0]
[1721203711223,15.5069,161.22,161.12,45.0]
[1721203711224,6.2047,161.17,161.12,45.0]
[1721203711425,17.06040695,161.2,161.12,45.0]
[1721203711840,6.2054,161.15,161.11,15.6472]
[1721203712040,6.2051,161.16,161.12,1.24114861]
[1721203712340,6.2051,161.16,161.12,1.24109554]
[1721203712843,6.2046,161.17,161.11,15.6472]
[1721203713047,6.2043,161.18,161.11,15.6472]
[1721203713354,7.75553576,161.19,161.12,46.24100283]
[1721203713950,6.2043,161.18,161.12,46.24100283]
[1721203714139,1.55117346,161.22,161.12,46.24100283]
[1721203714345,1.55117346,161.22,161.12,56.24100283]
[1721203714544,1.55094032,161.24,161.13,29.82]
[1721203714850,1.55084776,161.23,161.14,46.24067821]
[1721203715149,6.2027,161.22,161.15,1.24069266]
[1721203715349,1.55084776,161.23,161.16,22.3706]
[1721203715527,1.55086564,161.24,161.17,45.0]
[1721203715720,6.2025,161.23,161.18,1.2405916]
[1721203715943,6.2031,161.21,161.17,45.0]
[1721203716538,6.2028,161.22,161.18,1.24066337]
[1721203716834,6.2028,161.22,161.17,45.0]
[1721203717144,1.55077136,161.25,161.16,15.8776]
[1721203717145,1.55077359,161.21,161.16,15.8776]
[1721203717347,6.2043,161.18,161.16,15.8776]
[1721203717548,1.55119434,161.2,161.16,15.8776]
[1721203717755,6.2044,161.18,161.16,15.8776]
[1721203718050,6.2046,161.17,161.12,22.8088]
[1721203718250,1.55119434,161.2,161.12,22.8088]
[1721203718452,6.2039,161.19,161.12,22.8088]
[1721203718831,1.55119415,161.18,161.12,22.8088]
[1721203719149,6.2053,161.16,161.12,22.8088]
[1721203719359,6.2053,161.16,161.12,16.5784]
[1721203719652,7.75589682,161.17,161.12,16.5784]
[1721203719857,6.2047,161.17,161.12,16.5784]
[1721203720232,15.509,161.2,161.12,16.5784]
[1721203720233,7.75636741,161.16,161.12,16.5784]
[1721203720428,6.205,161.16,161.12,16.5784]
[1721203722526,6.2045,161.18,161.12,16.5784]
[1721203722733,1.55144692,161.17,161.12,16.5784]
[1721203723235,1.55144692,161.17,161.13,1.24115553]
[1721203723430,6.2039,161.19,161.13,1.24115553]
[1721203723636,29.99,161.22,161.13,46.24115553]
[1721203723637,1.55128132,161.18,161.13,46.24115553]
[1721203723948,1.55122257,161.17,161.13,45.0]
[1721203724148,6.2039,161.19,161.13,46.24103208]
[1721203724352,1.55123945,161.18,161.13,46.24103208]
[1721203724548,6.2035,161.2,161.13,45.0]
[1721203724745,1.89115224,161.22,161.14,1.24092179]
[1721203724936,6.2033,161.21,161.15,1.24085264]
[1721203725145,1.55110662,161.2,161.13,45.0]
[1721203725350,7.75470662,161.2,161.14,1.24095485]
[1721203725547,7.75470662,161.2,161.15,1.24090693]
[1721203726253,6.2032,161.21,161.15,1.24090693]
[1721203726756,1.55102097,161.2,161.16,1.24081677]
[1721203726955,7.75452097,161.2,161.14,1.24081676]
[1721203727156,6.2035,161.2,161.15,1.24073976]
[1721203728251,6.2035,161.2,161.16,1.24083445]
[1721203728563,6.2035,161.2,161.13,45.0]
[1721203729153,6.2035,161.2,161.14,0.57341696]
[1721203729352,6.2035,161.2,161.13,45.0]
[1721203729353,6.2035,161.2,161.15,1.24082953]
[1721203730065,1.55103932,161.19,161.15,1.24082953]
[1721203730266,6.2042,161.18,161.13,45.0]
[1721203730953,6.2052,161.16,161.12,16.5784]
[1721203731466,7.7558946,161.17,161.12,16.5784]
[1721203731764,6.2043,161.18,161.12,16.5784]
[1721203731963,6.2051,161.16,161.12,16.5784]
[1721203732157,1.55142577,161.15,161.12,16.5784]
[1721203732467,1.55153139,161.14,161.12,16.5784]
[1721203732768,7.75693139,161.15,161.12,16.5784]
[1721203733264,7.7573595,161.14,161.12,16.5784]
[1721203733564,1.55160938,161.13,161.08,15.9647]
[1721203733767,1.55160938,161.13,161.03,15.9041]
[1721203734067,6.2073,161.1,161.03,15.9041]
[1721203734268,1.55220699,161.09,161.03,15.9041]
[1721203734453,1.55220699,161.09,161.04,1.23858187]
[1721203735366,7.75990699,161.09,161.04,1.23858187]
[1721203735546,1.55217848,161.08,161.04,1.23858187]
[1721203736172,1.55217848,161.08,161.03,15.9041]
[1721203736352,1.55217848,161.08,161.04,1.24174271]
[1721203736560,6.207,161.11,161.05,1.24173884]
[1721203736750,1.55209025,161.1,161.05,1.2416722]
[1721203739049,7.75949025,161.1,161.05,1.2416722]
[1721203739265,1.5520796,161.09,161.05,1.2416722]
[1721203739461,6.2072,161.11,161.04,45.0]
[1721203739664,1.55198036,161.1,161.04,45.0]
[1721203739865,7.75948036,161.1,161.04,45.0]
[1721203740066,6.2077,161.09,161.04,45.0]
[1721203740272,1.55217446,161.14,161.05,1.24173957]
[1721203740577,6.2074,161.1,161.04,45.0]
[1721203741072,15.856,161.13,161.04,45.0]
[1721203741248,6.2081,161.08,161.04,45.0]
[1721203741686,6.2077,161.09,161.04,45.0]
[1721203741974,1.55217316,161.08,161.04,46.24173852]
[1721203742275,15.856,161.13,161.03,15.9041]
[1721203742276,1.55217557,161.07,161.03,15.9041]
[1721203742478,1.5523787,161.1,161.03,15.9041]
[1721203742648,0.34,161.09,161.03,15.9041]
[1721203742851,1.55239804,161.08,161.03,15.9041]
[1721203743048,0.34,161.09,161.03,15.9041]
[1721203743049,1.55242381,161.07,161.03,15.9041]
[1721203743450,1.55242381,161.07,160.99,16.2473]
[1721203743675,0.34,161.06,160.99,16.2473]
[1721203743914,1.89265396,161.06,160.99,16.2473]
[1721203744195,6.2097,161.04,160.99,16.2473]
[1721203744356,7.76270892,161.03,160.99,16.2473]
[1721203744555,1.55272915,161.02,160.99,16.2473]
[1721203745583,1.55271308,161.02,160.99,16.2473]
[1721203746473,6.2101,161.03,160.99,16.2473]
[1721203746794,1.55277501,161.02,160.99,16.2473]
[1721203747293,1.55273104,161.04,160.99,16.2473]
[1721203748579,6.2096,161.05,160.99,16.2473]
[1721203748763,1.55250956,161.04,161.0,45.0]
[1721203748972,1.55256559,161.05,161.0,46.24090612]
[1721203750281,6.2092,161.05,161.0,46.24090612]
[1721203750681,6.2098,161.04,161.0,46.24090612]
[1721203751258,1.55248051,161.08,161.01,1.24196344]
[1721203751572,6.3849,161.15,161.03,15.342]
[1721203751573,7.75928479,161.11,161.03,15.342]
[1721203751771,1.55206049,161.1,161.04,46.24164839]
[1721203752083,7.75936049,161.1,161.05,1.24157129]
[1721203752378,6.2077,161.09,161.05,1.24157129]
[1721203753185,6.2073,161.1,161.05,1.24157129]
[1721203754184,6.2073,161.1,161.05,7.36547129]
[1721203754371,6.207,161.11,161.06,45.0]
[1721203754572,6.207,161.11,161.07,1.24150378]
[1721203754779,6.2077,161.09,161.06,45.0]
[1721203754980,6.2077,161.09,161.05,6.1239]
[1721203755895,6.2082,161.08,161.03,15.342]
[1721203756075,6.2082,161.08,161.04,45.0]
[1721203757783,6.2082,161.08,161.03,15.342]
[1721203757784,1.55222302,161.07,161.03,15.342]
[1721203757986,1.55223492,161.1,161.03,15.342]
[1721203758188,6.2063,161.13,161.04,1.24162925]
[1721203758372,1.55175358,161.13,161.04,1.24162925]
[1721203758696,1.55173002,161.17,161.05,22.4118]
[1721203758871,6.2061,161.14,161.06,1.2413678]
[1721203759191,6.207,161.11,161.06,46.2413678]
[1721203759390,1.5517122,161.13,161.06,46.2413678]
[1721203759391,6.2066,161.12,161.06,46.2413678]
[1721203760291,1.55175972,161.16,161.07,15.5511]
[1721203760491,7.75695972,161.16,161.08,45.0]
[1721203760687,7.75695972,161.16,161.08,46.20585368]
[1721203760688,6.2056,161.15,161.08,46.20585368]
[1721203761088,6.2058,161.14,161.08,45.0]
[1721203761692,6.46569425,161.19,161.12,15.6806]
[1721203761894,6.2023,161.23,161.13,45.34]
[1721203762190,6.2023,161.23,161.14,7.87446184]
[1721203762376,6.46008939,161.26,161.16,15.2926]
[1721203762377,6.2019,161.24,161.16,15.2926]
[1721203762579,6.2019,161.24,161.17,1.24050713]
[1721203762798,7.75232487,161.25,161.18,1.24050261]
[1721203763185,6.2019,161.24,161.18,1.24050261]
[1721203763579,6.2019,161.24,161.17,45.0]
[1721203763987,6.2019,161.24,161.18,1.24047724]
[1721203764895,6.2019,161.24,161.17,45.0]
[1721203765076,6.2019,161.24,161.18,0.86532672]
[1721203765398,6.2019,161.24,161.17,45.0]
[1721203766196,6.2019,161.24,161.17,45.47047891]
[1721203766412,7.75183558,161.26,161.18,0.61160387]
[1721203766701,6.201,161.27,161.19,1.12015212]
[1721203767477,6.2012,161.26,161.19,1.12015212]
[1721203768109,6.2008,161.27,161.19,1.12015212]
[1721203768592,6.2013,161.26,161.18,0.34]
[1721203768985,6.2013,161.26,161.19,0.73028283]
[1721203769186,6.2013,161.26,161.19,16.0644]
[1721203769379,6.2013,161.26,161.2,45.0]
[1721203769780,6.2016,161.25,161.2,45.0]
[1721203770199,6.202,161.24,161.2,45.0]
[1721203770784,6.2016,161.25,161.2,45.0]
[1721203771208,6.2012,161.26,161.2,45.0]
[1721203771583,6.2012,161.26,161.21,1.24037709]
[1721203771782,6.2007,161.27,161.22,6.4409]
[1721203772078,8.58722234,161.28,161.23,46.24023707]
[1721203772283,8.58722234,161.28,161.23,45.0]
[1721203772707,8.58722234,161.28,161.24,1.24023882]
[1721203772894,6.2008,161.27,161.23,45.0]
[1721203775697,7.0369381,161.28,161.23,45.0]
[1721203776920,6.2008,161.27,161.23,45.0]
[1721203777089,0.8364381,161.28,161.23,45.0]
[1721203777596,7.0370381,161.28,161.23,46.23671569]
[1721203777813,6.2008,161.27,161.23,45.0]
[1721203779516,0.8364381,161.28,161.23,46.24023742]
[1721203779727,7.0368381,161.28,161.24,1.24023742]
[1721203780230,7.75109404,161.27,161.23,45.0]
[1721203780394,6.2008,161.27,161.23,46.24024471]
[1721203780600,7.0368381,161.28,161.24,1.24024471]
[1721203781437,7.0368381,161.28,161.23,45.0]
[1721203781438,6.2008,161.27,161.23,45.0]
[1721203781613,7.0369381,161.28,161.24,1.23821811]
[1721203781908,6.2008,161.27,161.23,45.0]
[1721203782218,6.2011,161.26,161.23,45.83508229]
[1721203782401,0.8364381,161.28,161.24,1.24022243]
[1721203782720,0.8364381,161.28,161.23,45.0]
[1721203783518,6.2007,161.27,161.23,45.0]
[1721203783720,7.75140105,161.26,161.22,6.4409]
[1721203783918,7.75156303,161.26,161.22,6.4409]
[1721203784495,6.2015,161.25,161.22,6.4409]
[1721203786100,6.2012,161.26,161.22,6.4409]
[1721203786303,1.55049855,161.25,161.22,6.4409]
[1721203787009,7.75219855,161.25,161.19,16.0644]
[1721203787214,1.55059227,161.24,161.2,45.0]
[1721203787729,1.55059167,161.23,161.19,16.0644]
[1721203788100,7.75289167,161.23,161.19,16.0644]
[1721203788319,1.55085189,161.22,161.19,16.0644]
[1721203789930,6.2016,161.25,161.19,16.0644]
[1721203790115,1.55081048,161.24,161.19,16.0644]
[1721203790317,1.55081048,161.23,161.19,16.0644]
[1721203790705,7.75270556,161.24,161.19,16.0644]
[1721203791424,7.75270556,161.24,161.19,17.30492156]
[1721203791814,6.2019,161.24,161.2,45.0]
[1721203792010,7.75290082,161.23,161.19,16.0644]
[1721203792333,6.202,161.24,161.19,16.0644]
[1721203792831,1.55071188,161.23,161.19,16.0644]
[1721203793006,7.75321188,161.23,161.19,16.0644]
[1721203793328,6.2025,161.23,161.19,16.0644]
[1721203794430,6.202,161.24,161.19,16.0644]
[1721203794629,6.202,161.24,161.2,45.0]
[1721203795012,6.2016,161.25,161.2,45.0]
[1721203795214,6.2016,161.25,161.21,1.24044486]
[1721203795415,7.75245968,161.24,161.2,45.0]
[1721203795621,6.2019,161.24,161.2,1.24052535]